bitfinex-derivatives/quotes_SOLF0:USTF0_20241230
["timestamp","ask_amount","ask_price","bid_price","bid_amount"]
[1735528484069,10.84999858,192.7,192.65,5.6412]
[1735528484763,8.24949858,192.7,192.67,2.6009]
[1735528484963,6.54152828,192.73,192.66,13.06111412]
[1735528485163,6.54152828,192.73,192.66,8.24949858]
[1735528485359,17.39122686,192.73,192.68,2.6007]
[1735528488066,14.79102686,192.73,192.7,2.6004]
[1735528488261,5.03572828,192.73,192.68,8.24949858]
[1735528489170,5.03572828,192.73,192.7,2.6004]
[1735528489969,12.44399858,192.75,192.7,2.6004]
[1735528491460,2.6,192.74,192.7,2.6004]
[1735528492060,2.6002,192.72,192.68,10.85019858]
[1735528492268,2.6002,192.72,192.68,2.6007]
[1735528492970,2.6004,192.71,192.66,8.24949858]
[1735528493165,2.6004,192.71,192.67,7.41482041]
[1735528493567,2.6004,192.71,192.67,2.6009]
[1735528494559,2.6006,192.7,192.66,8.24949858]
[1735528494766,2.6006,192.7,192.67,4.81529903]
[1735528495172,2.6006,192.7,192.66,8.24949858]
[1735528497667,2.6006,192.69,192.64,10.85069858]
[1735528498067,2.6006,192.69,192.65,4.81901117]
[1735528498262,2.6006,192.69,192.64,10.85069858]
[1735528498868,2.6006,192.69,192.65,4.81924542]
[1735528499170,2.6006,192.69,192.64,10.85069858]
[1735528499377,1.6042,192.68,192.64,10.85069858]
[1735528499879,1.6042,192.68,192.65,4.82051549]
[1735528500277,1.6042,192.68,192.64,10.85069858]
[1735528500977,1.6042,192.68,192.65,4.81918635]
[1735528501476,1.6042,192.68,192.66,13.06868493]
[1735528501778,1.6042,192.68,192.67,4.81918635]
[1735528501978,1.6042,192.68,192.67,7.42008635]
[1735528502480,1.6042,192.68,192.66,8.24949858]
[1735528502683,1.6042,192.68,192.66,10.85049858]
[1735528503980,1.6042,192.68,192.64,8.24949858]
[1735528504287,1.6042,192.68,192.65,4.82120558]
[1735528504785,1.6042,192.68,192.66,4.82120558]
[1735528505185,1.6042,192.68,192.64,8.24949858]
[1735528505587,4.205,192.68,192.65,4.82425572]
[1735528505787,1.6042,192.68,192.65,4.82425572]
[1735528506080,1.6042,192.68,192.66,4.82425572]
[1735528506488,1.6042,192.68,192.64,10.85079858]
[1735528506682,1.6042,192.68,192.65,8.82825585]
[1735528506886,1.6042,192.68,192.66,4.82348468]
[1735528507282,1.6042,192.68,192.65,2.6012]
[1735528507982,10.85039858,192.67,192.66,4.82339105]
[1735528508190,8.24949858,192.67,192.61,70.22711909]
[1735528508390,8.24949858,192.67,192.61,78.47661767]
[1735528508791,2.6011,192.66,192.61,78.47661767]
[1735528509188,2.6011,192.66,192.61,81.07831767]
[1735528509889,2.6011,192.66,192.62,2.6016]
[1735528515593,1.5917,192.72,192.63,8.24949858]
[1735528515899,1.5637,192.74,192.64,7.04660421]
[1735528516195,1.5637,192.74,192.65,4.00660421]
[1735528516395,1.5637,192.74,192.69,8.24949858]
[1735528516996,3.0967,192.78,192.71,8.24949858]
[1735528517496,2.5998,192.76,192.71,8.24949858]
[1735528519298,8.24949858,192.77,192.71,8.24949858]
[1735528519600,2.5999,192.75,192.71,8.24949858]
[1735528520192,8.24949858,192.75,192.69,8.24949858]
[1735528520396,8.24949858,192.73,192.67,11.28949858]
[1735528520703,1.5486,192.72,192.68,4.85595961]
[1735528520997,4.1489,192.72,192.67,11.28949858]
[1735528521598,1.5486,192.72,192.67,11.28949858]
[1735528521799,1.5486,192.72,192.67,13.89039858]
[1735528522097,1.5486,192.72,192.67,3.04]
[1735528522301,1.5486,192.77,192.71,8.24949858]
[1735528522600,1.5486,192.77,192.75,8.24949858]
[1735528522996,2.5991,192.81,192.75,8.24949858]
[1735528522997,8.24949858,192.82,192.75,8.24949858]
[1735528523200,1.5457,192.82,192.77,8.24949858]
[1735528523499,1.5457,192.82,192.79,10.84869858]
[1735528523897,1.5457,192.82,192.81,8.24949858]
[1735528524092,8.24949858,192.86,192.81,8.24949858]
[1735528524703,8.24949858,192.82,192.73,3.67143069]
[1735528524995,8.24949858,192.8,192.73,11.92092927]
[1735528525200,1.5457,192.79,192.73,11.92092927]
[1735528525605,10.84889858,192.78,192.73,11.92092927]
[1735528525791,8.24949858,192.76,192.71,11.28949858]
[1735528525996,8.24949858,192.76,192.71,3.04]
[1735528526502,8.24949858,192.76,192.71,11.28949858]
[1735528527197,10.84919858,192.76,192.71,11.28949858]
[1735528528000,10.84919858,192.76,192.71,3.04]
[1735528528195,8.24949858,192.74,192.62,1.4837]
[1735528528400,8.24949858,192.72,192.65,8.24949858]
[1735528528796,8.24949858,192.72,192.66,4.84468312]
[1735528529000,8.24949858,192.72,192.65,8.24949858]
[1735528529001,2.6004,192.71,192.65,8.24949858]
[1735528530402,2.6004,192.71,192.65,10.85059858]
[1735528530802,8.24949858,192.7,192.56,3.67481686]
[1735528531002,8.24949858,192.68,192.62,8.24949858]
[1735528531502,2.6009,192.67,192.62,8.24949858]
[1735528532301,8.24949858,192.68,192.62,8.24949858]
[1735528532502,8.24949858,192.66,192.6,8.24949858]
[1735528533399,2.6012,192.65,192.6,8.24949858]
[1735528533799,8.24949858,192.66,192.56,3.67481686]
[1735528534002,8.24949858,192.64,192.57,4.84638627]
[1735528534198,8.24949858,192.62,192.56,3.67481686]
[1735528535208,2.6017,192.61,192.56,3.67481686]
[1735528536904,2.6015,192.63,192.57,10.85179858]
[1735528537110,8.24949858,192.66,192.59,8.24949858]
[1735528537308,11.28949858,192.68,192.61,8.24949858]
[1735528537505,1.6175,192.69,192.67,8.24949858]
[1735528537706,3.1247,192.75,192.67,8.24949858]
[1735528537904,4.6454,192.75,192.69,8.24949858]
[1735528538308,2.6002,192.72,192.69,8.24949858]
[1735528538805,2.6001,192.74,192.69,10.85009858]
[1735528539311,2.6001,192.74,192.69,8.24949858]
[1735528541803,2.6001,192.74,192.69,10.85009858]
[1735528542204,2.6004,192.71,192.67,8.24949858]
[1735528543113,2.6005,192.7,192.64,5.6413]
[1735528543414,8.24949858,192.7,192.64,8.24949858]
[1735528543910,2.6009,192.68,192.64,8.24949858]
[1735528545314,8.24949858,192.7,192.64,8.24949858]
[1735528545510,10.85009858,192.7,192.64,8.24949858]
[1735528545812,8.24949858,192.7,192.64,8.24949858]
[1735528546013,2.6007,192.69,192.64,8.24949858]
[1735528547014,2.6008,192.68,192.64,8.24949858]
[1735528547907,2.6006,192.69,192.64,8.24949858]
[1735528548306,8.24949858,192.71,192.64,8.24949858]
[1735528548619,8.24949858,192.71,192.66,8.24949858]
[1735528548620,2.6004,192.71,192.66,8.24949858]
[1735528549323,2.6004,192.71,192.66,10.85049858]
[1735528551817,8.24949858,192.71,192.64,10.85079858]
[1735528552023,8.24949858,192.71,192.64,8.24949858]
[1735528552416,2.6009,192.68,192.64,8.24949858]
[1735528553022,2.6009,192.68,192.63,2.6014]
[1735528553217,2.6011,192.66,192.61,5.7816]
[1735528553415,2.6011,192.66,192.62,8.24949858]
[1735528554223,8.24949858,192.67,192.6,8.24949858]
[1735528554521,1.606,192.66,192.6,8.24949858]
[1735528555020,2.6013,192.64,192.6,8.24949858]
[1735528555318,1.606,192.66,192.6,8.24949858]
[1735528555521,5.03641428,192.73,192.64,8.24949858]
[1735528555713,5.03641428,192.73,192.67,8.24949858]
[1735528556224,5.03641428,192.73,192.67,12.95274959]
[1735528556419,14.45534959,192.8,192.67,12.95274959]
[1735528556627,2.5997,192.76,192.67,12.95274959]
[1735528557712,1.5709,192.79,192.7,2.6004]
[1735528557911,2.6,192.74,192.7,3.18]
[1735528558528,2.6001,192.73,192.7,3.18]
[1735528560225,2.6,192.74,192.7,3.18]
[1735528560623,1.5709,192.79,192.7,3.18]
[1735528561025,2.6001,192.73,192.7,3.18]
[1735528561722,1.5709,192.79,192.7,3.18]
[1735528562125,2.6001,192.74,192.7,3.18]
[1735528562425,1.5709,192.79,192.69,2.6006]
[1735528562625,12.95274959,192.77,192.67,16.13274959]
[1735528564025,12.95274959,192.77,192.64,12.95274959]
[1735528564328,16.13274959,192.77,192.64,16.13274959]
[1735528564529,2.6008,192.68,192.64,12.95274959]
[1735528565831,2.6009,192.67,192.63,2.6013]
[1735528566027,2.6009,192.67,192.62,5.7815]
[1735528566724,2.6008,192.68,192.63,2.6014]
[1735528566922,3.0522,192.73,192.62,3.18]
[1735528567527,2.601,192.67,192.62,3.18]
[1735528567727,3.0522,192.73,192.61,12.95274959]
[1735528567927,12.95274959,192.71,192.6,3.16]
[1735528568131,1.5098,192.7,192.59,3.16]
[1735528568631,1.5098,192.7,192.59,5.762]
[1735528568931,12.95274959,192.67,192.55,3.67420359]
[1735528569131,12.95274959,192.64,192.56,4.84056088]
[1735528569631,12.95274959,192.64,192.55,3.67420359]
[1735528569825,2.6017,192.62,192.57,2.6022]
[1735528570129,12.95274959,192.64,192.55,3.67420359]
[1735528570330,12.95274959,192.64,192.55,6.83420359]
[1735528570529,12.95274959,192.64,192.56,4.84530678]
[1735528571033,12.95274959,192.64,192.55,6.83420359]
[1735528571335,1.5771,192.66,192.57,2.6022]
[1735528571624,1.5771,192.66,192.55,6.83420359]
[1735528571828,2.6019,192.6,192.55,9.43660359]
[1735528572027,1.5771,192.66,192.55,3.16]
[1735528572421,0.78886528,192.65,192.55,3.16]
[1735528572622,0.78886528,192.65,192.54,2.6027]
[1735528572824,2.6021,192.59,192.54,2.6027]
[1735528573025,14.51924959,192.64,192.51,7.15353114]
[1735528573222,14.51924959,192.64,192.5,3.16]
[1735528573223,1.5251,192.58,192.5,3.16]
[1735528573433,1.5251,192.58,192.52,4.84659218]
[1735528573834,1.5251,192.58,192.48,3.16]
[1735528574330,2.6025,192.55,192.49,2.6033]
[1735528574721,1.5251,192.58,192.48,3.16]
[1735528575434,1.5251,192.58,192.47,6.83606734]
[1735528575730,2.6027,192.54,192.48,2.6033]
[1735528576736,2.6025,192.55,192.49,2.6033]
[1735528577031,1.5251,192.58,192.47,3.67606734]
[1735528577032,14.47784959,192.58,192.47,3.67606734]
[1735528577725,4.7129,192.57,192.46,12.95274959]
[1735528578033,4.7129,192.57,192.44,3.16]
[1735528578427,2.6032,192.51,192.45,2.6038]
[1735528579027,2.6032,192.5,192.45,2.6038]
[1735528579927,1.5256,192.56,192.45,2.6038]
[1735528579928,2.6031,192.51,192.45,2.6038]
[1735528580331,2.6031,192.51,192.44,3.16]
[1735528580630,2.6031,192.51,192.46,2.6037]
[1735528581035,1.5256,192.56,192.44,3.16]
[1735528581335,1.5529,192.57,192.46,12.95274959]
[1735528581530,1.5251,192.58,192.49,12.95274959]
[1735528581735,1.5251,192.58,192.52,12.95274959]
[1735528582033,14.48994959,192.67,192.52,16.11274959]
[1735528582236,1.6031,192.66,192.55,12.95274959]
[1735528582630,2.6013,192.64,192.55,12.95274959]
[1735528582826,2.6013,192.64,192.58,2.6021]
[1735528584140,2.6016,192.62,192.57,3.16]
[1735528585337,2.6014,192.64,192.57,3.16]
[1735528585832,2.6016,192.63,192.57,3.16]
[1735528586233,1.6031,192.66,192.57,3.16]
[1735528587439,2.6017,192.62,192.57,3.16]
[1735528587737,12.95274959,192.64,192.57,3.16]
[1735528587939,12.95274959,192.64,192.54,2.6025]
[1735528588135,12.95274959,192.64,192.53,3.16]
[1735528588336,12.95274959,192.64,192.57,2.6022]
[1735528588337,2.6016,192.63,192.57,2.6022]
[1735528588534,12.95274959,192.64,192.53,3.16]
[1735528588935,2.6014,192.63,192.56,2.6023]
[1735528589137,2.6014,192.63,192.53,3.16]
[1735528589627,2.6016,192.63,192.56,2.6023]
[1735528589832,1.6031,192.66,192.53,3.16]
[1735528590033,1.6031,192.66,192.55,12.95274959]
[1735528590433,1.6031,192.66,192.6,2.6017]
[1735528590434,4.2041,192.66,192.6,2.6017]
[1735528590635,1.6031,192.66,192.58,3.16]
[1735528591337,1.6031,192.66,192.61,2.6016]
[1735528592239,4.2042,192.66,192.6,2.6018]
[1735528593038,2.6014,192.64,192.59,2.602]
[1735528594435,2.6015,192.63,192.58,5.7621]
[1735528595239,1.6031,192.66,192.58,3.16]
[1735528595439,2.6013,192.64,192.59,2.6019]
[1735528595638,1.6031,192.66,192.58,3.16]
[1735528596542,4.2042,192.66,192.58,3.16]
[1735528596944,2.6004,192.71,192.66,2.601]
[1735528597132,5.03633434,192.73,192.65,3.16]
[1735528597337,5.03633434,192.73,192.65,3.1]
[1735528599142,2.5998,192.75,192.69,2.6005]
[1735528599444,7.7995,192.79,192.65,3.1]
[1735528599445,20.75224959,192.79,192.65,3.1]
[1735528599943,20.75224959,192.79,192.67,12.95274959]
[1735528600242,2.5997,192.76,192.67,12.95274959]
[1735528600439,20.75224959,192.79,192.67,12.95274959]
[1735528600440,17.65224959,192.79,192.67,12.95274959]
[1735528600947,2.5996,192.77,192.67,12.95274959]
[1735528601343,4.6995,192.79,192.67,12.95274959]
[1735528601543,2.5994,192.78,192.72,2.6002]
[1735528601845,2.5994,192.78,192.72,3.1]
[1735528602248,2.5994,192.78,192.72,5.7002]
[1735528603649,1.6091,192.79,192.72,3.1]
[1735528603851,2.5997,192.76,192.72,3.1]
[1735528604251,4.2085,192.79,192.73,2.6]
[1735528604551,1.6091,192.79,192.73,2.6]
[1735528604746,1.6091,192.79,192.72,3.1]
[1735528606550,2.5994,192.78,192.72,5.7002]
[1735528606744,1.6091,192.79,192.67,12.95274959]
[1735528606745,14.56184959,192.79,192.67,12.95274959]
[1735528606944,14.56184959,192.79,192.7,3.1]
[1735528607150,12.95274959,192.76,192.65,1.5067]
[1735528607453,12.95274959,192.76,192.66,3.1]
[1735528608547,2.6003,192.72,192.66,5.701]
[1735528608749,12.95274959,192.76,192.62,16.62606758]
[1735528608946,2.6006,192.69,192.64,2.6013]
[1735528609147,1.5639,192.71,192.63,3.1]
[1735528610449,2.6008,192.68,192.63,5.7014]
[1735528610960,1.5639,192.71,192.62,3.67331799]
[1735528611160,12.95274959,192.7,192.62,3.67331799]
[1735528611564,2.6012,192.65,192.59,15.55464959]
[1735528611766,12.95274959,192.67,192.56,16.05274959]
[1735528611960,3.1324,192.66,192.56,3.1]
[1735528612259,2.6016,192.62,192.56,3.1]
[1735528612864,2.6016,192.62,192.55,5.7025]
[1735528614265,2.6016,192.62,192.56,2.6023]
[1735528614964,2.6019,192.6,192.55,3.1]
[1735528615667,2.6019,192.6,192.54,2.6026]
[1735528616259,2.602,192.59,192.53,2.6028]
[1735528616473,1.6036,192.61,192.52,3.1]
[1735528617466,2.6021,192.58,192.52,5.7029]
[1735528619066,1.6036,192.61,192.53,3.1]
[1735528619268,1.6036,192.61,192.53,16.05274959]
[1735528619773,4.2053,192.61,192.55,2.6024]
[1735528620271,1.6036,192.61,192.57,2.6022]
[1735528621270,1.6036,192.61,192.58,2.6021]
[1735528621471,1.6036,192.61,192.58,3.1]
[1735528622576,3.1324,192.66,192.58,3.1]
[1735528622874,1.5041,192.65,192.58,3.1]
[1735528623572,2.6013,192.64,192.58,5.702]
[1735528624471,2.6013,192.64,192.59,2.602]
[1735528624671,4.1053,192.65,192.58,3.1]
[1735528624871,1.5041,192.65,192.58,3.1]
[1735528626373,1.5041,192.65,192.59,2.6019]
[1735528626787,1.5041,192.65,192.59,12.95274959]
[1735528626975,1.5041,192.65,192.62,2.6016]
[1735528627274,4.1053,192.65,192.59,16.01274959]
[1735528628584,4.1053,192.65,192.6,2.6018]
[1735528630080,4.1053,192.65,192.59,3.06]
[1735528630081,1.5041,192.65,192.59,3.06]
[1735528630280,1.5041,192.65,192.61,2.6017]
[1735528630682,1.5041,192.65,192.6,2.6017]
[1735528630981,1.5041,192.65,192.59,16.01274959]
[1735528631179,1.5041,192.65,192.63,2.6013]
[1735528632482,5.7265,192.69,192.63,2.6013]
[1735528633483,3.1258,192.69,192.63,2.6013]
[1735528633685,2.6008,192.68,192.63,2.6013]
[1735528640480,5.03730748,192.7,192.66,8.29647916]
[1735528641385,7.63780748,192.7,192.66,8.29647916]
[1735528641585,5.03730748,192.7,192.64,11.35647916]
[1735528641780,7.63780748,192.7,192.65,2.6012]
[1735528641978,5.03730748,192.7,192.64,11.35647916]
[1735528642184,5.03730748,192.7,192.66,8.29647916]
[1735528643087,5.03730748,192.7,192.65,2.601]
[1735528643879,7.63790748,192.7,192.65,2.601]
[1735528644188,5.03730748,192.7,192.64,13.95777916]
[1735528644487,2.6008,192.68,192.62,8.29647916]
[1735528644788,2.6008,192.68,192.62,11.35647916]
[1735528644984,2.6008,192.68,192.62,13.95797916]
[1735528645583,2.6008,192.68,192.62,10.89797916]
[1735528645989,2.6008,192.68,192.63,2.6014]
[1735528647588,2.6008,192.68,192.64,2.6013]
[1735528648583,8.29647916,192.69,192.62,11.35647916]
[1735528648785,6.53640748,192.7,192.66,10.89747916]
[1735528648980,5.03730748,192.7,192.66,8.29647916]
[1735528649188,5.03730748,192.7,192.68,2.6006]
[1735528649388,5.03730748,192.7,192.66,8.29647916]
[1735528650690,5.03730748,192.7,192.67,3.06]
[1735528651193,5.03730748,192.7,192.68,2.6007]
[1735528651783,5.03730748,192.7,192.67,5.6609]
[1735528651987,5.03730748,192.7,192.67,3.06]
[1735528653493,7.63790748,192.7,192.67,3.06]
[1735528653795,7.63790748,192.7,192.65,2.6012]
[1735528655191,7.63790748,192.7,192.66,2.601]
[1735528657591,5.03730748,192.7,192.68,8.29647916]
[1735528657798,0.21391645,192.7,192.69,3.04]
[1735528658192,0.21391645,192.7,192.58,1.5222]
[1735528658495,0.21391645,192.7,192.69,4.83203622]
[1735528658894,0.21391645,192.7,192.65,3.04]
[1735528659393,11.11089561,192.7,192.65,5.6412]
[1735528659891,0.21391645,192.7,192.65,3.04]
[1735528660093,0.21391645,192.7,192.66,8.29647916]
[1735528660395,0.21391645,192.7,192.68,8.29647916]
[1735528660597,0.21391645,192.7,192.69,2.6006]
[1735528661496,0.21391645,192.7,192.69,7.43287452]
[1735528661993,0.21391645,192.7,192.69,2.6006]
[1735528662698,0.21391645,192.7,192.69,7.43471303]
[1735528663702,0.21391645,192.7,192.69,4.83411303]
[1735528664001,0.21391645,192.7,192.66,11.33647916]
[1735528664189,0.21391645,192.7,192.67,4.83922538]
[1735528664598,0.21391645,192.7,192.66,11.33647916]
[1735528664799,0.21391645,192.7,192.67,2.6008]
[1735528665295,0.21391645,192.7,192.68,8.29647916]
[1735528665497,0.21391645,192.7,192.68,10.89717916]
[1735528666606,0.21391645,192.7,192.66,11.33647916]
[1735528666796,0.21391645,192.7,192.64,3.04]
[1735528667095,0.21391645,192.7,192.68,8.29647916]
[1735528667301,0.21391645,192.7,192.69,3.04]
[1735528667509,0.21391645,192.7,192.69,7.88381029]
[1735528667796,0.21391645,192.7,192.69,3.04]
[1735528667997,0.21391645,192.7,192.69,7.88174432]
[1735528668404,0.21391645,192.7,192.69,14.47258194]
[1735528669004,0.21391645,192.7,192.69,18.77882348]
[1735528669204,0.21391645,192.7,192.69,22.7684087]
[1735528671405,0.21391645,192.7,192.69,22.76718161]
[1735528672105,0.21391645,192.7,192.69,11.87010245]
[1735528672309,0.21391645,192.7,192.69,4.84174432]
[1735528673404,0.21391645,192.7,192.67,3.04]
[1735528673605,0.21391645,192.7,192.66,8.29647916]
[1735528673912,0.21391645,192.7,192.61,7.19118022]
[1735528673913,8.51039561,192.7,192.63,3.04]
[1735528674210,1.4728,192.69,192.63,11.33647916]
[1735528674411,1.4728,192.69,192.64,4.84413503]
[1735528674713,4.0735,192.69,192.65,4.84413503]
[1735528675107,4.0735,192.69,192.63,13.93777916]
[1735528675300,4.0735,192.69,192.64,4.84341003]
[1735528675609,1.4728,192.69,192.65,13.13988919]
[1735528675908,1.4728,192.69,192.67,8.29647916]
[1735528677405,1.4728,192.69,192.68,2.6008]
[1735528677607,1.4728,192.69,192.65,8.29647916]
[1735528678504,1.4728,192.69,192.65,10.89757916]
[1735528679712,4.0735,192.69,192.64,2.6013]
[1735528680009,4.0735,192.69,192.65,4.84365124]
[1735528680516,4.0735,192.69,192.64,2.6013]
[1735528680808,1.4728,192.69,192.63,8.29647916]
[1735528681015,1.4728,192.69,192.65,2.6012]
[1735528681209,1.4728,192.69,192.65,10.89767916]
[1735528681410,1.4728,192.69,192.65,2.6012]
[1735528682811,1.4728,192.69,192.66,10.89747916]
[1735528683011,1.4728,192.69,192.66,8.29647916]
[1735528683209,1.4728,192.69,192.64,8.29647916]
[1735528683515,1.4728,192.69,192.64,10.89767916]
[1735528683813,1.4728,192.69,192.65,4.84545026]
[1735528684009,1.4728,192.69,192.65,2.6011]
[1735528684210,1.4728,192.69,192.64,8.29647916]
[1735528684615,1.4728,192.69,192.65,4.84624811]
[1735528685114,12.37007916,192.69,192.64,8.29647916]
[1735528685309,9.76927916,192.69,192.62,8.29647916]
[1735528685814,2.6009,192.68,192.63,4.84694222]
[1735528686211,9.76927916,192.69,192.62,8.29647916]
[1735528686412,12.36997916,192.69,192.62,8.29647916]
[1735528686912,2.6008,192.68,192.63,4.84677334]
[1735528687414,1.4728,192.69,192.64,8.29647916]
[1735528687614,9.76927916,192.69,192.64,8.29647916]
[1735528688015,12.36997916,192.69,192.64,10.89777916]
[1735528689018,12.36997916,192.69,192.64,2.6013]
[1735528689217,9.76927916,192.69,192.62,8.29647916]
[1735528689518,2.6009,192.67,192.62,8.29647916]
[1735528689719,9.76927916,192.69,192.63,4.84436761]
[1735528690217,9.76927916,192.69,192.62,8.29647916]
[1735528690417,1.4728,192.69,192.64,8.29647916]
[1735528690918,1.4728,192.69,192.65,2.6012]
[1735528691518,4.0735,192.69,192.65,2.6012]
[1735528691820,1.4728,192.69,192.65,2.6012]
[1735528692122,1.4728,192.69,192.66,8.29647916]
[1735528692515,1.4728,192.69,192.67,2.6009]
[1735528692820,1.4728,192.69,192.66,8.29647916]
[1735528694223,1.4728,192.69,192.66,10.89737916]
[1735528695115,1.4728,192.69,192.67,4.83852407]
[1735528695316,1.4728,192.69,192.66,10.89737916]
[1735528696016,1.4728,192.69,192.67,7.43753822]
[1735528696320,1.4728,192.69,192.67,2.6009]
[1735528696618,0.21391645,192.7,192.68,2.6007]
[1735528696813,0.21391645,192.7,192.68,8.29647916]
[1735528698420,0.21391645,192.7,192.68,10.89727916]
[1735528698822,0.21391645,192.7,192.68,8.29647916]
[1735528699021,0.21391645,192.7,192.65,3.04]
[1735528699216,0.21391645,192.7,192.65,11.33647916]
[1735528699419,2.81441645,192.7,192.66,4.83571589]
[1735528699617,0.21391645,192.7,192.67,4.83571589]
[1735528700222,0.21391645,192.7,192.65,11.33647916]
[1735528700419,0.21391645,192.7,192.67,2.6009]
[1735528701517,0.21391645,192.7,192.65,11.33647916]
[1735528701713,0.21391645,192.7,192.66,4.83651222]
[1735528701918,0.21391645,192.7,192.64,3.04]
[1735528702118,8.29647916,192.69,192.63,2.6014]
[1735528702315,1.4768,192.68,192.63,2.6014]
[1735528703225,2.6012,192.65,192.59,2.6019]
[1735528703425,8.29647916,192.65,192.6,3.98875937]
[1735528703625,8.29647916,192.63,192.61,4.8404204]
[1735528703923,8.29647916,192.63,192.57,8.29647916]
[1735528704325,10.89797916,192.63,192.58,4.84228406]
[1735528704514,2.6015,192.63,192.58,4.84228406]
[1735528704721,10.89797916,192.63,192.57,10.89867916]
[1735528705221,10.89797916,192.63,192.58,4.84011182]
[1735528705614,10.89797916,192.63,192.57,10.89867916]
[1735528706224,10.89797916,192.63,192.58,4.83830192]
[1735528706618,10.89797916,192.63,192.57,10.89867916]
[1735528707626,10.89797916,192.63,192.58,2.6021]
[1735528707830,8.29647916,192.63,192.58,2.6021]
[1735528708826,10.89797916,192.63,192.57,10.89867916]
[1735528711822,3.0206,192.68,192.61,8.29647916]
[1735528712023,3.0206,192.68,192.63,8.29647916]
[1735528712831,3.0206,192.68,192.63,10.89777916]
[1735528713029,3.0206,192.68,192.61,3.04]
[1735528713227,3.0206,192.68,192.63,8.29647916]
[1735528714130,1.4768,192.68,192.64,2.6012]
[1735528714327,1.4768,192.68,192.61,3.04]
[1735528714525,0.21391645,192.7,192.65,8.29647916]
[1735528714728,0.21391645,192.7,192.69,8.29647916]
[1735528715226,0.21391645,192.7,192.69,15.72617746]
[1735528715833,0.21391645,192.7,192.69,19.70503367]
[1735528716430,0.21391645,192.7,192.69,15.72617746]
[1735528718233,0.21391645,192.7,192.69,13.12557746]
[1735528718428,0.21391645,192.7,192.68,2.6008]
[1735528718635,0.21391645,192.7,192.67,11.33647916]
[1735528718932,0.21391645,192.7,192.68,4.82974675]
[1735528719427,0.21391645,192.7,192.68,2.6006]
[1735528719635,0.21391645,192.7,192.69,8.29647916]
[1735528719832,0.21391645,192.7,192.69,13.12246652]
[1735528720438,0.21391645,192.7,192.69,15.72306652]
[1735528721332,0.21391645,192.7,192.69,18.76306652]
[1735528721835,0.21391645,192.7,192.69,13.93707916]
[1735528722639,0.21391645,192.7,192.69,18.75811796]
[1735528722834,0.21391645,192.7,192.69,16.15751796]
[1735528723337,0.21391645,192.7,192.69,11.33647916]
[1735528723529,0.21391645,192.7,192.69,13.93707916]
[1735528724036,0.21391645,192.7,192.69,18.75751664]
[1735528725240,0.21391645,192.7,192.69,22.72823396]
[1735528725638,0.21391645,192.7,192.69,18.75751664]
[1735528726236,0.21391645,192.7,192.69,22.72726071]
[1735528726634,0.21391645,192.7,192.69,18.75751664]
[1735528730238,1.5538,192.78,192.76,2.5996]
[1735528731539,8.29647916,192.84,192.77,8.29647916]
[1735528731841,9.82747916,192.84,192.77,8.29647916]
[1735528732441,9.82747916,192.84,192.78,2.5994]
[1735528733541,9.82747916,192.84,192.77,8.29647916]
[1735528733742,1.531,192.84,192.8,2.5991]
[1735528735436,1.531,192.84,192.79,13.93577916]
[1735528737745,4.1297,192.84,192.79,13.93577916]
[1735528738039,12.42617916,192.84,192.79,5.6393]
[1735528740252,2.5989,192.82,192.79,3.04]
[1735528740452,8.29647916,192.8,192.75,3.04]
[1735528741445,8.29647916,192.8,192.75,5.6398]
[1735528743053,2.5993,192.79,192.74,8.29647916]
[1735528743253,2.5993,192.79,192.74,11.33647916]
[1735528743454,1.531,192.84,192.74,3.04]
[1735528743455,8.29647916,192.78,192.74,3.04]
[1735528743654,1.6156,192.77,192.72,8.29647916]
[1735528744450,1.6156,192.77,192.72,10.89667916]
[1735528745548,4.2152,192.77,192.72,10.89667916]
[1735528745955,1.6156,192.77,192.75,2.5998]
[1735528748661,1.6156,192.77,192.74,8.29647916]
[1735528748862,1.6156,192.77,192.72,10.89657916]
[1735528749760,1.6156,192.77,192.72,8.29647916]
[1735528750461,4.2152,192.77,192.72,8.29647916]
[1735528750655,1.6156,192.77,192.72,8.29647916]
[1735528750861,1.6156,192.77,192.72,10.89667916]
[1735528751062,1.6156,192.77,192.72,8.29647916]